bitfinex/quotes_ETHUSD_20260308
["timestamp","ask_amount","ask_price","bid_price","bid_amount"]
[1773006218662,1.2803237,1955.0,1954.5,1.75575772]
[1773006218861,0.48743095,1954.9,1954.5,1.75575772]
[1773006219266,0.48743095,1954.9,1954.2,1.27929587]
[1773006219466,0.48743095,1954.9,1954.4,0.4767079]
[1773006219859,0.48743095,1954.9,1954.4,1.9167079]
[1773006221055,0.48743095,1954.9,1954.5,1.75580741]
[1773006222238,0.48743095,1954.9,1954.6,0.4767079]
[1773006224471,0.002,1954.8,1954.6,0.4767079]
[1773006224668,0.48943095,1954.8,1954.5,1.75580741]
[1773006227065,0.48943095,1954.8,1954.5,1.27909951]
[1773006227377,0.48743095,1954.7,1954.4,2.71913335]
[1773006227684,0.002,1954.8,1954.4,3.19584125]
[1773006227890,0.002,1954.8,1954.5,1.75577106]
[1773006228185,0.002,1954.8,1954.6,0.4767079]
[1773006229949,0.002,1954.8,1954.6,1.75570853]
[1773006230858,0.002,1954.8,1954.7,0.4767079]
[1773006232585,0.002,1954.8,1954.5,5.11634577]
[1773006232777,0.48943095,1954.8,1954.5,5.11634577]
[1773006232984,0.48943095,1954.8,1954.5,5.59305367]
[1773006233389,0.48943095,1954.8,1954.5,1.75580741]
[1773006235894,0.48943095,1954.8,1954.4,3.19882147]
[1773006236079,0.48943095,1954.8,1954.5,0.4767079]
[1773006236465,0.002,1954.8,1954.5,0.4767079]
[1773006237302,0.00153886,1955.0,1954.5,0.5]
[1773006237593,0.00153886,1955.0,1954.7,0.5]
[1773006238395,0.002,1954.8,1954.7,0.5]
[1773006239601,0.002,1954.8,1954.7,1.77896863]
[1773006240997,0.00353886,1955.0,1954.8,0.499]
[1773006241975,0.00353886,1955.0,1954.8,1.77789826]
[1773006242678,0.00353886,1955.0,1954.9,0.499]
[1773006244497,0.00553886,1955.0,1954.8,1.448]
[1773006244701,0.00353886,1955.0,1954.9,0.499]
[1773006251225,0.00353886,1955.0,1954.9,0.5]
[1773006253016,0.00353886,1955.0,1954.9,1.77883779]
[1773006253218,0.00353886,1955.0,1954.9,0.001]
[1773006253609,0.00353886,1955.0,1954.9,1.27983779]
[1773006253933,0.002,1954.9,1954.6,0.001]
[1773006254085,0.002,1954.9,1954.2,5.11816867]
[1773006254420,0.00353886,1955.0,1954.3,1.76921004]
[1773006254421,0.47474209,1955.0,1954.3,1.76921004]
[1773006254587,0.47474209,1955.0,1954.3,11.56662196]
[1773006255289,0.47120323,1954.8,1954.3,11.56662196]
[1773006259517,0.47120323,1954.8,1954.4,1.77912264]
[1773006260724,0.47120323,1954.7,1954.3,1.27917871]
[1773006261597,0.47120323,1954.7,1954.2,0.49104508]
[1773006261797,0.47120323,1954.7,1954.2,10.288457]
[1773006262130,0.47120323,1954.7,1954.2,9.788457]
[1773006262700,0.301,1954.6,1954.2,9.79841192]
[1773006263735,0.301,1954.4,1954.2,0.001]
[1773006264699,0.301,1954.4,1954.3,0.001]
[1773006265033,0.301,1954.4,1953.9,1.28048694]
[1773006265034,0.301,1954.4,1953.9,0.001]
[1773006265234,0.301,1954.2,1953.8,0.001]
[1773006265636,0.301,1954.0,1953.8,9.79941192]
[1773006265800,0.301,1954.1,1953.8,9.79941192]
[1773006265999,0.301,1954.1,1953.9,9.79841192]
[1773006266863,0.301,1954.1,1953.7,0.001]
[1773006267046,0.301,1954.1,1953.7,8.83138695]
[1773006267930,0.3,1953.9,1953.7,8.83138695]
[1773006271337,0.3,1953.8,1953.7,8.83138695]
[1773006271846,0.3,1954.2,1953.8,0.49004508]
[1773006272022,0.3,1954.6,1953.9,0.49004508]
[1773006272416,0.3,1954.6,1954.1,0.49004508]
[1773006272646,0.3,1954.6,1954.3,0.49004508]
[1773006273048,0.002,1954.7,1954.4,8.83038695]
[1773006273240,0.002,1954.7,1954.4,9.29521305]
[1773006273953,0.002,1954.7,1954.5,0.4648261]
[1773006274422,0.002,1954.7,1954.6,8.83038695]
[1773006274955,0.002,1954.7,1954.6,10.10942102]
[1773006275256,0.002,1954.7,1954.6,10.57424712]
[1773006276156,0.05293886,1955.0,1954.7,9.29121305]
[1773006276324,0.05293886,1955.0,1954.7,0.4648261]
[1773006276524,0.35293886,1955.0,1954.7,0.4648261]
[1773006277448,0.35293886,1955.0,1954.8,8.82638695]
[1773006277627,0.05293886,1955.0,1954.8,8.82638695]
[1773006277819,0.05293886,1955.0,1954.8,9.29121305]
[1773006278021,0.3,1955.2,1954.9,9.29121305]
[1773006278249,0.3,1955.3,1954.9,0.4648261]
[1773006278854,5.41406632,1955.4,1955.0,8.82638695]
[1773006279058,5.41406632,1955.4,1955.0,9.29121305]
[1773006279260,0.3,1955.3,1955.0,9.29121305]
[1773006281844,1.57859038,1955.3,1955.0,9.29121305]
[1773006283529,0.3,1955.3,1955.0,9.29121305]
[1773006283736,1.57858298,1955.3,1955.0,9.29121305]
[1773006283949,1.57858298,1955.3,1955.1,8.32938695]
[1773006284136,1.57858298,1955.3,1955.1,8.82638695]
[1773006285255,0.3,1955.2,1954.9,0.4648261]
[1773006285558,0.3,1955.2,1954.5,1.74389168]
[1773006285757,0.1,1955.1,1954.6,0.4648261]
[1773006286460,1.37877237,1955.0,1954.6,0.4648261]
[1773006286663,0.1,1954.9,1954.6,0.4648261]
[1773006287470,0.1,1954.9,1954.4,3.2009404]
[1773006287631,1.14711579,1954.9,1954.4,0.4648261]
[1773006287836,0.1,1954.9,1954.4,0.4648261]
[1773006288549,1.37890321,1954.8,1954.4,1.74397997]
[1773006288874,1.37890321,1954.8,1954.5,8.12356287]
[1773006289576,1.37890321,1954.8,1954.5,0.497]
[1773006289870,0.1,1954.7,1954.3,1.27919594]
[1773006294979,0.1,1954.7,1954.4,7.62656287]
[1773006295772,1.27890321,1954.8,1954.4,8.09138897]
[1773006295973,1.73454412,1954.8,1954.4,8.09138897]
[1773006296141,0.45564091,1954.7,1954.4,8.09138897]
[1773006297756,0.45564091,1954.7,1954.3,1.27919594]
[1773006297757,0.45564091,1954.6,1954.5,7.62656287]
[1773006298064,0.45564091,1954.6,1954.2,0.4648261]
[1773006298266,0.45564091,1954.6,1954.2,1.74411315]
[1773006299868,0.45564091,1954.5,1954.3,7.62656287]
[1773006302051,0.45564091,1954.5,1954.4,0.001]
[1773006304971,0.45564091,1954.5,1954.4,7.62756287]
[1773006306776,1.2790768,1954.6,1954.4,7.62756287]
[1773006306777,0.48860501,1954.6,1954.4,7.62756287]
[1773006307081,0.48860501,1954.6,1954.5,7.62656287]
[1773006307284,0.48860501,1954.6,1954.4,0.001]
[1773006308189,0.48860501,1954.6,1954.3,0.001]
[1773006308377,0.48860501,1954.6,1954.1,0.49862567]
[1773006308378,0.48860501,1954.4,1954.1,0.001]
[1773006308582,0.48860501,1954.3,1954.1,0.001]
[1773006308779,0.48860501,1954.2,1954.1,0.001]
[1773006311195,0.48860501,1954.2,1954.0,0.00153886]
[1773006312193,0.48860501,1954.1,1954.0,0.00153886]
[1773006317199,0.48860501,1954.1,1954.0,0.00253886]
[1773006319449,1.28121896,1954.4,1954.0,0.00253886]
[1773006319577,0.48860501,1954.3,1954.0,0.00253886]
[1773006321810,1.27923223,1954.3,1954.0,0.50016453]
[1773006322232,1.76783724,1954.3,1954.0,0.50016453]
[1773006322710,0.48860501,1954.3,1954.0,0.00253886]
[1773006323588,3.09860501,1954.3,1954.0,0.00253886]
[1773006323793,4.37784816,1954.3,1954.0,0.00253886]
[1773006324210,3.88924315,1954.3,1954.0,0.50016453]
[1773006324593,4.37784816,1954.3,1954.0,0.50016453]
[1773006324911,0.48860501,1954.2,1954.0,0.00253886]
[1773006329011,0.48860501,1954.2,1954.1,0.001]
[1773006330682,1.2812746,1954.3,1954.1,0.001]
[1773006330888,0.002,1954.3,1954.1,0.49862567]
[1773006331087,0.002,1954.5,1954.2,0.49762567]
[1773006333625,0.002,1954.5,1954.4,0.45345435]
[1773006335399,0.002,1954.5,1954.4,1.73261931]
[1773006338312,0.002,1954.8,1954.5,0.45345435]
[1773006338625,0.004,1954.9,1954.5,0.45345435]
[1773006339033,0.49159556,1954.9,1954.5,0.45345435]
[1773006339236,0.002,1955.1,1954.6,0.45345435]
[1773006340336,0.002,1955.1,1954.7,1.77896862]
[1773006341119,0.002,1955.1,1954.7,1.27896863]
[1773006341320,0.002,1955.1,1954.8,0.49999999]
[1773006341830,2.612,1955.1,1954.8,0.49999999]
[1773006345233,3.89070865,1955.1,1954.6,0.49999999]
[1773006347238,3.89070865,1955.1,1954.7,1.27896863]
[1773006347416,3.89070865,1955.1,1954.7,1.77896862]
[1773006349036,2.612,1955.1,1954.7,1.77896862]
[1773006349233,2.612,1955.1,1954.8,0.49999999]
[1773006349465,3.89070846,1955.1,1954.8,0.49999999]
[1773006351430,1.28070846,1955.1,1954.8,0.49999999]
[1773006351629,0.002,1955.1,1954.8,0.49999999]
[1773006351812,0.002,1955.1,1954.9,0.49999999]
[1773006352138,1.04706394,1955.5,1954.9,0.49999999]
[1773006352139,2.72243088,1955.6,1954.9,0.49899999]
[1773006352324,2.72343088,1955.6,1954.9,0.49899999]
[1773006353422,2.72143088,1955.6,1955.1,0.49899999]
[1773006354256,1.27843088,1955.6,1955.1,0.49899999]
[1773006354548,2.72243088,1955.6,1955.1,0.49899999]
[1773006355622,0.002,1955.5,1955.1,0.49899999]
[1773006356751,0.002,1955.5,1955.1,1.77770689]
[1773006357120,0.002,1955.5,1955.2,0.49899999]
[1773006357844,1.449,1955.5,1955.2,0.49899999]
[1773006359946,0.002,1955.5,1955.2,0.49899999]
[1773006363370,0.004,1955.5,1955.2,0.49899999]
[1773006364157,0.002,1955.4,1955.0,1.77771886]
[1773006364348,0.002,1955.4,1955.0,1.27871887]
[1773006364659,0.002,1955.3,1954.9,1.27983779]
[1773006364959,0.002,1955.3,1954.9,1.77883778]
[1773006366359,2.73151079,1955.4,1955.0,0.49899999]
[1773006366559,2.73351079,1955.4,1955.0,0.49899999]
[1773006367057,2.73351079,1955.4,1955.0,1.77774328]
[1773006367058,1.28051079,1955.4,1955.0,1.77774328]
[1773006367266,2.73451079,1955.4,1955.0,1.77774328]
[1773006368064,1.28049523,1955.5,1955.1,0.49899999]
[1773006368751,1.28049523,1955.5,1955.1,0.49999999]
[1773006369264,0.002,1955.3,1955.1,0.49999999]
[1773006370557,0.002,1955.3,1955.2,0.49899999]
[1773006380569,0.002,1955.5,1955.3,0.48942802]
[1773006381688,0.002,1955.5,1955.1,0.001]
[1773006381854,0.002,1955.5,1955.2,0.48942802]
[1773006383314,0.002,1955.5,1955.2,0.49042802]
[1773006383672,0.002,1955.3,1955.2,0.49042802]
[1773006386894,2.61,1955.5,1955.3,0.48942802]
[1773006387086,3.88845698,1955.5,1955.3,0.48942802]
[1773006387701,3.88845698,1955.5,1955.2,0.49042802]
[1773006387702,4.35892653,1955.5,1955.2,0.49042802]
[1773006387879,3.88845698,1955.5,1955.2,0.49042802]
[1773006388074,3.8884612,1955.5,1955.2,0.49042802]
[1773006388407,3.88845892,1955.5,1955.2,0.49042802]
[1773006389187,0.47046955,1955.4,1955.2,0.001]
[1773006391278,1.74899129,1955.4,1955.2,0.001]
[1773006392106,1.27852174,1955.4,1955.2,0.001]
[1773006392408,0.47046955,1955.4,1955.2,0.001]
[1773006392609,1.74898123,1955.4,1955.2,0.001]
[1773006392782,0.47046955,1955.3,1955.2,0.001]
[1773006392982,0.47046955,1955.3,1955.0,0.001]
[1773006393186,1.74911112,1955.2,1955.0,0.001]
[1773006393505,0.47046955,1955.1,1954.7,1.27896146]
[1773006393805,0.47046955,1955.1,1954.6,1.77417926]
[1773006394012,0.47046955,1955.1,1954.6,0.49517536]
[1773006394536,0.47046955,1955.1,1954.6,0.001]
[1773006394882,0.47046955,1955.1,1954.6,0.49517536]
[1773006394883,2.61,1955.1,1954.6,0.49517536]
[1773006395078,2.61,1955.1,1954.6,0.001]
[1773006395079,0.47046955,1954.9,1954.6,0.001]
[1773006396613,0.47046955,1954.9,1954.7,0.001]
[1773006401518,0.49324543,1954.9,1954.7,0.001]
[1773006408025,0.49324543,1954.8,1954.7,0.001]
[1773006409493,0.49324543,1954.8,1954.6,0.001]
[1773006409494,0.49324543,1954.7,1954.5,0.001]
[1773006409699,0.49324543,1954.7,1954.2,0.001]
[1773006409700,0.49324543,1954.5,1954.2,0.001]
[1773006410006,1.479,1954.6,1953.9,0.001]
[1773006410007,1.04750744,1954.3,1953.9,0.001]
[1773006410206,0.49324543,1954.2,1953.7,0.49517536]
[1773006410529,0.49324543,1954.2,1953.6,0.001]
[1773006410530,0.49324543,1954.1,1953.6,0.001]
[1773006410727,0.49324543,1953.8,1953.4,1.77498562]
[1773006410930,0.49324543,1954.0,1953.5,0.49417536]
[1773006411128,0.49324543,1954.3,1953.5,0.49417536]
[1773006411308,2.81973797,1954.7,1953.7,0.49417536]
[1773006411507,5.11564026,1954.8,1953.7,0.49417536]
[1773006411508,1.27893391,1954.8,1953.7,0.49417536]
[1773006411911,4.27461089,1954.9,1953.7,0.49417536]
[1773006412409,4.27461089,1954.9,1953.8,0.49417536]
[1773006412626,1.77210345,1954.9,1953.8,0.49417536]
[1773006414238,1.77210345,1954.9,1954.0,0.49417536]
[1773006414546,1.27885802,1954.9,1954.0,0.49417536]
[1773006416334,1.66260222,1955.0,1954.2,0.49417536]
[1773006416506,0.49324543,1954.9,1954.2,0.49417536]
[1773006417632,0.38382744,1955.0,1954.2,0.49417536]
[1773006417933,0.87707287,1955.0,1954.2,0.49417536]
[1773006418834,0.38382744,1955.0,1954.4,0.49417536]
[1773006420105,0.002,1954.8,1954.4,0.49417536]
[1773006420742,0.002,1954.8,1954.6,0.49417536]
[1773006422850,0.002,1954.8,1954.7,1.77430249]
[1773006425654,0.002,1954.8,1954.3,1.27918307]
[1773006425655,0.46546711,1954.8,1954.3,1.27918307]
[1773006425949,0.46546711,1954.8,1954.3,1.73142378]
[1773006426118,0.46546711,1954.8,1954.3,1.27918307]
[1773006427426,1.28092925,1954.8,1954.3,1.27918307]
[1773006427625,0.46346711,1954.7,1954.3,1.27918307]
[1773006428455,0.46346711,1954.7,1954.2,1.731515]
[1773006428758,0.46346711,1954.7,1954.2,1.27928051]
[1773006429761,0.46346711,1954.6,1954.1,0.45324071]
[1773006429934,0.46346711,1954.6,1954.1,1.35772213]
[1773006430359,0.46346711,1954.6,1954.1,0.90548142]
[1773006431038,0.46346711,1954.6,1954.1,1.35772213]
[1773006431234,0.46346711,1954.6,1954.1,0.45324071]
[1773006431435,0.46346711,1954.6,1954.1,0.001]
[1773006431946,0.46346711,1954.5,1954.1,2.18484276]
[1773006432128,0.46346711,1954.5,1954.2,0.45224071]
[1773006432654,0.46346711,1954.7,1954.3,0.45224071]
[1773006432832,0.46546711,1954.7,1954.3,0.45224071]
[1773006433668,0.002,1954.9,1954.5,0.45224071]
[1773006434032,0.002,1954.9,1954.7,0.45224071]
[1773006437256,0.002,1954.9,1954.5,0.45224071]
[1773006437965,0.46546711,1954.9,1954.6,0.90048142]
[1773006438149,0.46546711,1954.9,1954.2,5.56920799]
[1773006438350,0.46546711,1954.9,1954.3,0.90248142]
[1773006438548,0.46546711,1954.9,1954.4,0.45224071]
[1773006438868,0.002,1954.9,1954.5,0.45224071]
[1773006439070,0.002,1954.9,1954.7,0.45224071]
[1773006439366,0.46546711,1955.1,1954.7,0.45224071]
[1773006439367,0.002,1955.1,1954.9,0.45224071]
[1773006439624,0.54975929,1955.0,1954.9,0.45224071]
[1773006440452,0.54975929,1955.0,1954.8,2.12844577]
[1773006440650,0.54975929,1955.0,1954.9,0.39730185]
[1773006441264,0.54975929,1955.0,1954.8,0.45224071]
[1773006441465,0.54975929,1955.0,1954.9,0.39730185]
[1773006442071,0.54975929,1955.0,1954.8,0.45224071]
[1773006442256,0.54975929,1955.0,1954.9,0.39730185]
[1773006443077,0.46346711,1954.9,1954.3,0.45224071]
[1773006443283,0.46346711,1954.7,1954.3,0.45224071]
[1773006443982,0.46346711,1954.6,1954.0,0.00253886]
[1773006444280,0.46346711,1954.4,1954.0,0.00253886]
[1773006444659,0.46346711,1954.6,1954.1,0.45224071]
[1773006444976,0.85008078,1954.7,1954.4,0.001]
[1773006445183,0.38561367,1954.7,1954.4,0.001]
[1773006445355,0.38561367,1954.7,1954.5,1.73128654]
[1773006445550,0.17561367,1954.7,1954.6,0.45224071]
[1773006446188,0.002,1955.1,1954.6,0.35574133]
[1773006447481,0.002,1955.1,1954.8,0.35574133]
[1773006448391,0.46546711,1955.1,1954.7,1.27896863]
[1773006448958,0.46546711,1955.1,1954.7,1.63470996]
[1773006452480,0.46346711,1955.0,1954.5,5.11636323]
[1773006453657,0.46346711,1955.0,1954.5,5.47210456]
[1773006453857,0.46346711,1955.0,1954.5,5.11636323]
[1773006454291,1.28073858,1955.1,1954.6,0.35574133]
[1773006454617,0.002,1955.1,1954.8,0.35574133]
[1773006454792,0.002,1955.2,1954.8,0.35374133]
[1773006457291,0.002,1955.2,1954.9,0.35374133]
[1773006458289,0.002,1955.1,1954.9,0.35374133]
[1773006460885,0.002,1955.1,1954.9,1.63252554]
[1773006462404,0.002,1955.1,1954.9,0.35374133]
[1773006462584,0.002,1955.1,1955.0,0.35374133]
[1773006468915,0.002,1955.1,1954.9,0.38258748]
[1773006470607,0.49780834,1955.0,1954.7,0.001]
[1773006470789,0.49780834,1955.0,1954.7,1.27996412]
[1773006471423,0.49780834,1955.0,1954.7,0.001]
[1773006473780,0.002,1955.1,1954.8,0.38258748]
[1773006473984,0.49980834,1955.1,1954.8,1.66248766]
[1773006474993,0.49980834,1955.1,1954.8,2.55875626]
[1773006480324,0.002,1955.1,1954.9,1.73824316]
[1773006481624,0.002,1955.1,1955.0,1.27990018]
[1773006482027,0.002,1955.1,1955.0,1.28090018]
[1773006484550,0.002,1955.1,1955.0,1.73924316]
[1773006485552,0.002,1955.3,1955.1,0.45834298]
[1773006485830,2.14887165,1955.9,1955.1,0.45834298]
[1773006485831,0.48475715,1956.0,1955.1,0.45834298]
[1773006486231,0.48475715,1956.0,1955.3,0.45834298]
[1773006486435,0.00153886,1956.0,1955.5,0.45834298]
[1773006487235,0.00153886,1956.0,1955.7,0.45834298]
[1773006488011,0.48475715,1956.0,1955.6,0.45834298]
[1773006488317,0.48321829,1956.3,1955.8,1.2782493]
[1773006488624,0.48321829,1956.3,1955.2,1.74743993]
[1773006488625,0.48321829,1956.0,1955.2,1.74743993]
[1773006488824,0.48321829,1956.0,1955.3,0.46879836]
[1773006492428,0.48321829,1955.9,1955.5,0.46879836]
[1773006492631,5.11208126,1956.2,1955.5,0.46879836]
[1773006492632,0.48321829,1956.1,1955.5,0.46879836]
[1773006492934,0.48321829,1956.1,1955.6,1.74669854]
[1773006493140,0.48321829,1956.1,1955.6,0.46879836]
[1773006493339,1.76107557,1956.4,1955.8,0.46879836]
[1773006493717,0.002,1955.9,1955.8,0.46879836]
[1773006493925,0.002,1955.9,1955.8,1.27790018]
[1773006494345,0.002,1955.9,1955.5,0.46879836]
[1773006494544,0.48521829,1955.9,1955.7,1.27831466]
[1773006494737,0.48321829,1956.3,1955.8,0.46879836]
[1773006494935,1.04664152,1956.7,1955.7,1.27831466]
[1773006494936,0.38885643,1956.9,1956.0,0.46879836]
[1773006495125,0.48321829,1956.8,1956.0,0.46879836]
[1773006495324,0.48321829,1956.4,1955.6,1.74713262]
[1773006495843,0.48321829,1956.4,1955.7,1.27790018]
[1773006496628,0.48321829,1956.2,1955.8,1.27790018]
[1773006496941,0.48321829,1956.2,1955.5,1.27839929]
[1773006497140,0.48321829,1956.2,1955.6,1.27790018]
[1773006497949,0.48321829,1956.2,1955.7,1.27790018]
[1773006498155,0.48321829,1956.2,1955.5,1.27790018]
[1773006498740,1.27805326,1956.1,1955.5,1.27790018]
[1773006499049,0.48321829,1956.0,1955.5,1.27790018]
[1773006499673,0.48321829,1956.0,1955.4,1.92979836]
[1773006499854,0.48321829,1956.0,1955.5,1.74669854]
[1773006500871,1.27818395,1955.9,1955.5,1.74669854]
[1773006501221,1.76140224,1955.9,1955.5,0.46879836]
[1773006501431,0.48321829,1955.8,1955.6,1.27790018]
[1773006501650,0.48321829,1955.8,1955.5,1.27790018]
[1773006502156,0.48321829,1955.8,1955.6,1.27790018]
[1773006502356,0.48321829,1955.8,1955.5,1.27790018]
[1773006502849,1.27831466,1955.7,1955.5,1.27790018]
[1773006503053,1.27830001,1955.8,1955.4,0.46879836]
[1773006503228,1.7615183,1955.8,1955.5,1.27790018]
[1773006503427,1.7615183,1955.8,1955.5,1.74669854]
[1773006506340,1.7615183,1955.8,1955.5,1.74769854]
[1773006506661,0.48321829,1955.8,1955.5,1.74769854]
[1773006506869,0.48321829,1955.8,1955.6,1.27790018]
[1773006509467,0.48321829,1955.8,1955.7,1.27790018]
[1773006509634,0.48321829,1955.8,1955.6,1.27790018]
[1773006510156,1.27821552,1955.9,1955.7,1.27790018]
[1773006510667,1.27821552,1955.9,1955.7,1.74669854]
[1773006513765,1.27817043,1956.0,1955.8,1.27790018]
[1773006515763,1.27817043,1956.0,1955.9,1.27790018]
[1773006515959,1.27817043,1956.0,1955.7,0.46879836]
[1773006516158,1.27817043,1956.0,1955.8,1.27790018]
[1773006517571,1.27817043,1956.0,1955.9,1.27790018]
[1773006518376,1.27817043,1956.0,1955.8,0.47096681]
[1773006518544,1.74021746,1956.0,1955.9,1.27790018]
[1773006518746,0.46204703,1955.9,1955.7,1.27790018]
[1773006520650,1.28009864,1956.1,1955.8,0.001]
[1773006520849,0.46204703,1956.0,1955.8,1.27890018]
[1773006521383,0.46204703,1956.0,1955.9,1.27790018]
[1773006524364,1.74016563,1956.0,1955.9,1.27790018]
[1773006524762,0.46204703,1956.0,1955.9,1.27790018]
[1773006525081,0.46204703,1955.9,1955.8,0.001]
[1773006527754,1.74023098,1955.9,1955.8,0.001]
[1773006528282,0.46204703,1955.8,1955.6,0.001]
[1773006528466,0.46204703,1955.7,1955.4,0.001]
[1773006528981,1.479,1955.7,1955.4,0.001]
[1773006529182,0.46204703,1955.6,1955.4,0.001]
[1773006529580,0.46204703,1955.5,1955.2,0.001]
[1773006530286,0.46204703,1955.3,1955.2,0.001]
[1773006531081,0.46204703,1955.3,1954.9,2.93777044]
[1773006531285,0.46204703,1955.3,1954.9,0.001]
[1773006532086,1.27864157,1955.2,1954.9,0.001]
[1773006532291,0.46204703,1955.1,1954.9,0.001]
[1773006534388,1.7407989,1955.1,1954.9,0.001]
[1773006534701,1.7407989,1955.1,1955.0,0.001]
[1773006536894,0.46204703,1955.0,1954.9,0.001]
[1773006537798,0.46204703,1955.0,1954.8,0.001]
[1773006538186,0.46204703,1955.0,1954.7,0.001]
[1773006540997,1.27883779,1954.9,1954.7,0.001]
[1773006541209,0.46204703,1954.8,1954.7,0.001]
[1773006541407,0.46204703,1954.8,1954.5,0.001]
[1773006541408,0.46204703,1954.7,1954.5,0.001]
[1773006543196,1.76506115,1954.6,1954.5,0.001]
[1773006544374,0.48602708,1954.6,1954.5,0.001]
[1773006544728,3.25395636,1954.8,1954.5,0.46894346]
[1773006544906,0.48602708,1954.7,1954.5,0.002]
[1773006546102,0.45986347,1954.6,1954.5,0.002]
[1773006546319,0.45986347,1954.6,1954.5,0.001]
[1773006546604,0.45986347,1954.6,1954.4,0.001]
[1773006546806,0.45986347,1954.6,1954.4,0.002]
[1773006548002,1.27906161,1954.6,1954.4,0.001]
[1773006548183,0.45986347,1954.5,1954.4,0.001]
[1773006553112,0.45986347,1954.5,1954.3,0.001]
[1773006554113,0.45986347,1954.4,1954.3,0.001]
[1773006558806,1.73902843,1954.4,1954.1,0.001]
[1773006559118,1.73902843,1954.4,1954.1,0.45862824]
[1773006563125,5.11627467,1954.6,1954.1,0.45862824]
[1773006563318,1.28103407,1954.7,1953.8,0.001]
[1773006563319,0.45986347,1954.1,1953.8,0.001]
[1773006564119,0.45986347,1954.1,1953.6,0.45862824]
[1773006564120,0.45986347,1953.9,1953.6,0.001]
[1773006564322,0.45986347,1953.7,1953.5,0.001]
[1773006564619,2.53688808,1954.0,1953.5,0.001]
[1773006564824,2.99675155,1954.0,1953.5,0.45862824]
[1773006565210,1.27949229,1953.9,1953.5,0.45862824]
[1773006566006,0.45986347,1953.7,1953.4,0.001]
[1773006566995,0.45986347,1953.7,1953.2,0.45862824]
[1773006567196,1.50675155,1953.6,1953.2,0.45762824]
[1773006567430,0.45986347,1953.5,1953.1,1.55365083]
[1773006567629,0.45986347,1953.5,1953.1,0.27366507]
[1773006567924,0.45986347,1953.5,1953.0,1.28159813]
[1773006568232,0.45986347,1953.5,1953.0,0.00153886]
[1773006568804,0.45986347,1953.3,1953.0,0.00153886]
[1773006569310,0.45986347,1953.1,1952.7,1.73790536]
[1773006570112,0.45986347,1953.1,1952.7,1.28027712]
[1773006570315,1.27995084,1953.2,1952.8,0.45762824]
[1773006571144,1.73981431,1953.2,1952.8,0.45762824]
[1773006571340,9.42199272,1954.2,1952.9,0.45762824]
[1773006571341,1.04688808,1953.6,1952.9,0.45762824]
[1773006571524,1.27967244,1953.7,1952.9,0.45762824]
[1773006571725,1.73953591,1953.7,1953.1,0.45762824]
[1773006572123,2.3264687,1953.8,1953.1,0.45762824]
[1773006572327,0.00153886,1954.0,1953.1,0.45762824]
[1773006573436,0.00153886,1954.0,1953.3,0.46943316]
[1773006575051,1.52620151,1953.8,1953.2,1.27995084]
[1773006575255,0.47931343,1953.7,1953.2,0.46943316]
[1773006575617,1.04688808,1953.6,1953.1,1.27997472]
[1773006575853,1.27966995,1953.7,1953.2,0.46943316]
[1773006576053,5.59857262,1954.0,1953.2,0.46943316]
[1773006576054,0.00153886,1954.0,1953.2,0.46943316]
[1773006576250,0.00153886,1954.0,1953.3,0.46943316]
[1773006577525,0.00153886,1954.0,1953.4,1.2798198]
[1773006577754,0.00153886,1954.0,1953.5,0.46943316]
[1773006579958,0.00153886,1954.0,1953.6,1.27968877]
[1773006580162,0.00153886,1954.0,1953.7,0.46943316]
[1773006580958,0.00153886,1954.0,1953.1,1.74944954]
[1773006580959,0.47931343,1953.7,1953.1,1.74944954]
[1773006581146,0.47931343,1953.7,1952.9,5.12106553]
[1773006581147,1.04688808,1953.6,1953.0,0.001]
[1773006581348,0.47931343,1953.5,1953.0,0.001]
[1773006582034,2.80602131,1953.4,1953.0,0.001]
[1773006582241,0.47931343,1953.3,1953.0,0.001]
[1773006583461,1.27977182,1953.5,1953.0,0.001]
[1773006583761,2.80590616,1953.6,1953.0,0.47043316]
[1773006584147,2.80590616,1953.6,1953.1,1.28001638]
[1773006584148,2.80589785,1953.6,1953.1,1.28001638]
[1773006584342,1.52620151,1953.6,1953.1,1.28001638]
[1773006584534,1.52620151,1953.6,1953.1,1.28111638]
[1773006585668,0.47931343,1953.6,1953.1,1.75054954]
[1773006585835,6.6566085,1953.9,1953.2,0.46943316]
[1773006585836,0.001,1953.9,1953.2,0.46943316]
[1773006586160,1.2805354,1953.9,1953.4,0.46943316]
[1773006586345,1.75984883,1953.9,1953.4,0.46943316]
[1773006588462,1.75984883,1953.9,1953.4,1.74920816]
[1773006590068,0.48031343,1953.9,1953.4,1.74920816]
[1773006590366,1.75981538,1953.9,1953.4,1.74920816]
[1773006591066,1.28050195,1953.9,1953.5,0.46943316]
[1773006591246,1.28050792,1953.9,1953.5,0.46943316]
[1773006593262,0.001,1953.9,1953.5,0.46943316]
[1773006594365,0.48031343,1953.9,1953.5,0.46943316]
[1773006594536,0.48031343,1953.9,1953.2,5.1196886]
[1773006594736,0.48031343,1953.9,1953.2,1.27995084]
[1773006595868,0.47931343,1953.7,1953.1,5.59051722]
[1773006596250,0.47931343,1953.8,1953.2,0.46943316]
[1773006596845,0.48031343,1953.8,1953.2,0.46943316]
[1773006597968,1.75987962,1953.8,1953.4,0.46943316]
[1773006598273,0.001,1953.8,1953.4,0.46943316]
[1773006599572,0.48031343,1953.8,1953.4,1.2797886]
[1773006599785,0.48031343,1953.8,1953.4,1.74922176]
[1773006599945,0.001,1953.8,1953.4,1.74922176]
[1773006600145,0.001,1953.8,1953.5,0.46943316]
[1773006600976,0.001,1953.8,1953.4,1.2797886]
[1773006601182,0.001,1953.8,1953.4,1.74922176]
[1773006602296,0.48031343,1953.8,1953.4,1.2797886]
[1773006602581,0.48031343,1953.8,1953.3,1.27984578]
[1773006603290,0.001,1953.8,1953.4,0.45890161]
[1773006603497,0.001,1953.9,1953.4,0.45890161]
[1773006604468,0.001,1953.9,1953.5,1.27975428]
[1773006604657,0.001,1953.9,1953.6,0.45890161]
[1773006605058,0.49640784,1953.9,1953.5,1.27975428]
[1773006606160,0.001,1953.9,1953.6,0.49746032]
[1773006606575,0.001,1953.9,1953.7,1.27962327]
[1773006606790,0.001,1953.9,1953.8,0.49746032]
[1773006607163,1.28123041,1954.3,1953.9,0.49746032]
[1773006607365,0.00253886,1954.2,1953.9,0.49746032]
[1773006608478,0.002,1954.3,1953.9,0.49746032]